Workbook

Sheet 개인서비스
A1: 개 인 서 비 스 요 금 동 향
A2: (2023년6월)
A3: 구 분 | D3: 대 덕 구
A4: 지역 품목 | B4: 조사기준 | C4: 우 리 구 평균가격 | D4: 오정동 | E4: 대화동 | F4: 회덕동 | G4: 비래동 | H4: 송촌동 | I4: 중리동 | J4: 법1,2동 | K4: 신탄진동 | L4: 석봉,목상동 | M4: 덕암동
A6: 설렁탕 | B6: 1그릇(대중식당) | C6: =AVERAGE(D6:M6) -> 8500 | D6: 9000 | H6: 9000 | I6: 8000 | J6: 7500 | L6: 9000 | N6: =MAX(D6:M6) -> 9000 | O6: =MIN(D6:M6) -> 7500 | P6: 설렁탕 | Q6: 1그릇(대중식당)
A7: 냉 면 | B7: " | C7: =AVERAGE(D7:M7) -> 8222.222222 | D7: 10000 | E7: 6000 | F7: 10000 | G7: 7000 | H7: 10000 | I7: 7000 | J7: 6000 | K7: 9000 | M7: 9000 | N7: 10000 | O7: 6000 | P7: 냉 면 | Q7: "
A8: 비빔밥 | B8: " | C8: =AVERAGE(D8:M8) -> 6625 | D8: 7000 | E8: 6000 | H8: 8000 | I8: 5000 | J8: 6000 | K8: 7000 | L8: 7000 | M8: 7000 | N8: 8000 | O8: 5000 | P8: 비빔밥 | Q8: "
A9: 갈비탕 | B9: " | C9: 11888.88889 | D9: 13000 | F9: 15000 | G9: 12000 | H9: 11000 | I9: 9000 | J9: 12000 | K9: 10000 | L9: 12000 | M9: 13000 | N9: 15000 | O9: 9000 | P9: 갈비탕 | Q9: "
A10: 삼계탕 | B10: " | C10: 12700 | D10: 13000 | E10: 12000 | F10: 15000 | G10: 13000 | H10: 13000 | I10: 12000 | J10: 12000 | K10: 12000 | L10: 11000 | M10: 14000 | N10: 15000 | O10: 11000 | P10: 삼계탕 | Q10: "
A11: 김치찌개백반 | B11: " | C11: 7700 | D11: 7000 | E11: 8000 | F11: 9000 | G11: 8000 | H11: 8000 | I11: 8000 | J11: 7000 | K11: 7000 | L11: 9000 | M11: 6000 | N11: 9000 | O11: 6000 | P11: 김치찌개백반 | Q11: "
A12: 된장찌개백반 | B12: " | C12: 7300 | D12: 7000 | E12: 7000 | F12: 9000 | G12: 7000 | H12: 8000 | I12: 7000 | J12: 7000 | K12: 7000 | L12: 8000 | M12: 6000 | N12: 9000 | O12: 6000 | P12: 된장찌개백반 | Q12: "
A13: 불고기 | B13: 1인분(200g) | C13: 12666.66667 | D13: 14000 | I13: 12000 | M13: 12000 | N13: 14000 | O13: 12000 | P13: 불고기 | Q13: 1인분(200g)
A14: 등심 | B14: " | C14: 30000 | D14: 30000 | H14: 17000 | I14: 35000 | J14: 39000 | M14: 29000 | N14: 39000 | O14: 17000 | P14: 등심 | Q14: "
A15: 돼지갈비 | B15: " | C15: 13342.85714 | F15: 14000 | G15: 14000 | H15: 15000 | I15: 15000 | J15: 13000 | K15: 12000 | M15: 10400 | N15: 15000 | O15: 10400 | P15: 돼지갈비 | Q15: "
A16: 삼겹살 | B16: " | C16: 13116 | D16: 14000 | E16: 13000 | F16: 14000 | G16: 14000 | H16: 7500 | I16: 10000 | J16: 14000 | K16: 12000 | L16: 14000 | M16: 18660 | N16: 18660 | O16: 7500 | P16: 삼겹살 | Q16: "
A17: 자장면 | B17: 1그릇(중국집) | C17: 5777.777778 | D17: 6000 | E17: 6000 | F17: 6000 | G17: 5000 | H17: 6000 | I17: 5000 | J17: 5000 | K17: 6500 | L17: 55,00 | M17: 6500 | N17: 6500 | O17: 5000 | P17: 자장면 | Q17: 1그릇(중국집)
A18: 짬뽕 | B18: " | C18: =AVERAGE(D18:M18) -> 7111.111111 | D18: 7000 | E18: 7500 | F18: 8000 | G18: 6000 | H18: 8000 | I18: 6500 | J18: 6000 | K18: 7500 | L18: 65,00 | M18: 7500 | N18: 8000 | O18: 6000 | P18: 짬뽕 | Q18: "
A19: 탕수육 | B19: 일반 보통 | C19: 20600 | D19: 20000 | E19: 23000 | F19: 22000 | G19: 17000 | H19: 18000 | I19: 18000 | J19: 20000 | K19: 25000 | L19: 18000 | M19: 25000 | N19: 25000 | O19: 17000 | P19: 탕수육 | Q19: 일반 보통
A20: 돈가스 | B20: 1인분(경양식집) | C20: 8333.333333 | D20: 6000 | G20: 8000 | H20: 10500 | J20: 9000 | K20: 7500 | L20: 9000 | N20: 10500 | O20: 6000 | P20: 돈가스 | Q20: 1인분(경양식집)
A21: 생선초밥 | B21: 1인분(일식집) | C21: 12666.66667 | H21: 10000 | I21: 16000 | J21: 12000 | N21: 16000 | O21: 10000 | P21: 생선초밥 | Q21: 1인분(일식집)
A22: 치킨 | B22: 1마리(튀김통닭) | C22: 16490 | D22: 19000 | E22: 17000 | F22: 19000 | G22: 9900 | H22: 18000 | I22: 14000 | J22: 12000 | K22: 19000 | L22: 19000 | M22: 18000 | N22: 19000 | O22: 9900 | P22: 치킨 | Q22: 1마리(튀김통닭)
A23: 햄버거 | B23: 1개(야채+고기 +전문햄버거) | C23: 5233.333333 | D23: 12400 | G23: 4100 | H23: 4700 | I23: 3600 | K23: 3800 | M23: 2800 | N23: 12400 | O23: 2800 | P23: 햄버거 | Q23: 1개(야채+고기 +전문햄버거)
A24: 피자 | B24: 1판 (불고기 9인치) | C24: 14014.28571 | D24: 21900 | H24: 9900 | I24: 12500 | J24: 12000 | K24: 12900 | L24: 17000 | M24: 11900 | N24: 21900 | O24: 9900 | P24: 피자 | Q24: 1판 (불고기 9인치)
A25: 칼국수 | B25: 1그릇 (분식집) | C25: 6900 | D25: 7000 | E25: 6000 | F25: 8000 | G25: 8000 | H25: 7000 | I25: 5500 | J25: 7000 | K25: 7000 | L25: 7000 | M25: 6500 | N25: 8000 | O25: 5500 | P25: 칼국수 | Q25: 1그릇 (분식집)
A26: 라면 | B26: " | C26: 3900 | D26: 3500 | E26: 4500 | F26: 4500 | G26: 4000 | H26: 4000 | I26: 3000 | J26: 4500 | K26: 3500 | L26: 3500 | M26: 4000 | N26: 4500 | O26: 3000 | P26: 라면 | Q26: "
A27: 김밥 | B27: " | C27: 2600 | D27: 2500 | E27: 2500 | F27: 3000 | G27: 3000 | H27: 3000 | I27: 2000 | J27: 3000 | K27: 2500 | L27: 2000 | M27: 2500 | N27: 3000 | O27: 2000 | P27: 김밥 | Q27: "
A28: 커피 | B28: 1잔 (일반 원두커피) | C28: =AVERAGE(D28:M28) -> 2777.777778 | D28: 2500 | F28: 4000 | G28: 2000 | H28: 3500 | I28: 3000 | J28: 3000 | K28: 2500 | L28: 2000 | M28: 2500 | N28: 4000 | O28: 2000 | P28: 커피 | Q28: 1잔 (일반 원두커피)
A29: 국산차 | B29: 녹차 | C29: 3611.111111 | D29: 3500 | F29: 4000 | G29: 4000 | H29: 4500 | I29: 4000 | J29: 4000 | K29: 3000 | L29: 2000 | M29: 3500 | N29: 4500 | O29: 2000 | P29: 국산차 | Q29: 녹차
A30: 생맥주 | B30: 500CC | C30: 3644.444444 | D30: 3000 | E30: 3000 | F30: 4000 | G30: 4000 | H30: 4000 | I30: 3800 | J30: 4000 | K30: 3000 | L30: 4000 | N30: 4000 | O30: 3000 | P30: 생맥주 | Q30: 500CC
A31: 세 탁 료 | B31: 1벌(양복상하) | C31: 7100 | D31: 7000 | E31: 7000 | F31: 8000 | G31: 7000 | H31: 7000 | I31: 6000 | J31: 8000 | K31: 6000 | L31: 7000 | M31: 8000 | N31: 8000 | O31: 6000 | P31: 세 탁 료 | Q31: 1벌(양복상하)
A32: 의복수선료 | B32: 신사복하의(길이수선) | C32: 3500 | D32: 3000 | E32: 3000 | F32: 3000 | G32: 3000 | H32: 4000 | I32: 3000 | J32: 4000 | K32: 2000 | L32: 3000 | M32: 7000 | N32: 7000 | O32: 2000 | P32: 의복수선료 | Q32: 신사복하의(길이수선)
A33: 공동주택 관리비 | B33: 1개월고층 31평 개별부과요금제외 | C33: =AVERAGE(D33:M33) -> 123609.875 | D33: 149088 | F33: 143649 | G33: 32900 | H33: 114210 | I33: 170811 | J33: 117890 | K33: 136900 | M33: 123431 | N33: 170811 | O33: 32900 | P33: 공동주택 관리비 | Q33: 1개월고층 31평 개별부과요금제외
A34: 택배이용료 | B34: 기본20kg미만 | C34: 6550 | D34: 6000 | E34: 5000 | F34: 6000 | G34: 5000 | H34: 8000 | I34: 8000 | J34: 7000 | K34: 10000 | L34: 6000 | M34: 4500 | N34: 10000 | O34: 4500 | P34: 택배이용료 | Q34: 기본20kg미만
A35: 수영장이용료 | B35: 성인 1회 (체육기금포함) | C35: 3400 | E35: 2500 | I35: 4300 | N35: 4300 | O35: 2500 | P35: 수영장이용료 | Q35: 성인 1회 (체육기금포함)
A36: 볼링장이용료 | B36: 1게임1인 (일반평일) | C36: 3583.333333 | D36: 3600 | F36: 3900 | G36: 4000 | H36: 3000 | L36: 3500 | M36: 3500 | N36: 4000 | O36: 3000 | P36: 볼링장이용료 | Q36: 1게임1인 (일반평일)
A37: 골프연습장 이용료 | B37: 1개월초급 (남자레슨기금5%) | C37: 113750 | D37: 12500 | F37: 300000 | H37: 110000 | J37: 100000 | K37: 150000 | L37: 10000 | N37: 300000 | O37: 10000 | P37: 골프연습장 이용료 | Q37: 1개월초급 (남자레슨기금5%)
A38: 당구장이용료 | B38: 1시간(쿠션당구대일반) | C38: 8730 | D38: 10000 | E38: 7000 | F38: 8000 | G38: 8500 | H38: 9000 | I38: 12000 | J38: 8000 | K38: 7800 | L38: 8000 | M38: 9000 | N38: 12000 | O38: 7000 | P38: 당구장이용료 | Q38: 1시간(쿠션당구대일반)
A39: 노래방 이용료 | B39: 1시간(일반실저녁) | C39: 30000 | D39: 35000 | E39: 30000 | F39: 30000 | G39: 35000 | H39: 30000 | I39: 25000 | J39: 30000 | K39: 25000 | L39: 30000 | M39: 30000 | N39: 35000 | O39: 25000 | P39: 노래방 이용료 | Q39: 1시간(일반실저녁)
A40: PC방이용료 | B40: 1시간 | C40: 1187.5 | D40: 1000 | F40: 1000 | G40: 1000 | H40: 1200 | I40: 2000 | K40: 1000 | L40: 1000 | M40: 1300 | N40: 2000 | O40: 1000 | P40: PC방이용료 | Q40: 1시간
A41: 영화관람료 | B41: 1회(상영시간100분) | N41: 0 | O41: 0 | P41: 영화관람료 | Q41: 1회(상영시간100분)
A42: 사진촬영료 | B42: 증명판 | C42: 20375 | D42: 18000 | F42: 20000 | G42: 20000 | H42: 20000 | I42: 20000 | J42: 20000 | K42: 20000 | M42: 25000 | N42: 25000 | O42: 18000 | P42: 사진촬영료 | Q42: 증명판
A43: 사진인화료 | B43: 디지탈사진인화료 1장 | C43: 1150 | D43: 300 | F43: 300 | G43: 600 | H43: 500 | I43: 700 | J43: 400 | K43: 6000 | M43: 400 | N43: 6000 | O43: 300 | P43: 사진인화료 | Q43: 디지탈사진인화료 1장
A44: 숙박료(호텔) | B44: 1박(관광호텔 2급2종) | N44: 0 | O44: 0 | P44: 숙박료(호텔) | Q44: 1박(관광호텔 2급2종)
A45: 숙박료(여관) | B45: 1박 | C45: 37500 | D45: 40000 | I45: 30000 | K45: 40000 | M45: 40000 | N45: 40000 | O45: 30000 | P45: 숙박료(여관) | Q45: 1박
A46: 콘도이용료 | B46: 25평, 1일1박 | N46: 0 | O46: 0 | P46: 콘도이용료 | Q46: 25평, 1일1박
A47: 이용료 | B47: 1회(성인중급) | C47: 11400 | D47: 13000 | E47: 12000 | F47: 12000 | G47: 10000 | H47: 10000 | I47: 10000 | J47: 10000 | K47: 10000 | L47: 15000 | M47: 12000 | N47: 15000 | O47: 10000 | P47: 이용료 | Q47: 1회(성인중급)
A48: 미용료 | B48: 컷트(여) | C48: 11500 | D48: 12000 | E48: 10000 | F48: 13000 | G48: 10000 | H48: 12000 | I48: 8000 | J48: 12000 | K48: 12000 | L48: 14000 | M48: 12000 | N48: 14000 | O48: 8000 | P48: 미용료 | Q48: 컷트(여)
A49: 목 욕 료 | B49: 성인1회 | C49: 6500 | D49: 6000 | E49: 7000 | H49: 8000 | I49: 7000 | J49: 5000 | K49: 6000 | L49: 7000 | M49: 6000 | N49: 8000 | O49: 5000 | P49: 목 욕 료 | Q49: 성인1회
A50: 찜질방이용료 | B50: 성인1회 | N50: 0 | O50: 0 | P50: 찜질방이용료 | Q50: 성인1회
A51: 운동경기관람료 | B51: 1회(프로야구 축구일반내야) | N51: 0 | O51: 0 | P51: 운동경기관람료 | Q51: 1회(프로야구 축구일반내야)

Sheet 동구 (hidden)
A1: 개 인 서 비 스 요 금 가 격 동 향
A2: 조사일시 : 2014. 8.
A3: 구 분 | C3: 우 리 시 평균가격 | D3: 동 구
A4: 지역 품목 | B4: 조사기준 | D4: 동구평균 | E4: 중앙동 | F4: 효,산내동 | G4: 판암동 | H4: 용운동 | I4: 자양.신인동 | J4: 성남.대동 | K4: 가양동 | L4: 용전동 | M4: 삼성,홍도동
A6: 설렁탕 | B6: 1그릇 (대중식당) | D6: 5800 | E6: 6000 | F6: 0 | G6: 5000 | H6: 0 | I6: 6000 | J6: 0 | K6: 7000 | L6: 5000 | M6: 0
A7: 냉 면 | B7: " | D7: 4940.145503 | E7: 5000 | F7: 4857.142857 | G7: 4875 | H7: 4875 | I7: 4666.666667 | J7: 4062.5 | K7: 4458.333333 | L7: 5666.666667 | M7: 6000
A8: 비빔밥 | B8: " | D8: 4909.722222 | E8: 4833.333333 | F8: 0 | G8: 4500 | H8: 4750 | I8: 5000 | J8: 0 | K8: 4875 | L8: 5500 | M8: 0
A9: 갈비탕 | B9: " | D9: 6985.714286 | E9: 7000 | F9: 8000 | G9: 7000 | H9: 6300 | I9: 6000 | J9: 7000 | K9: 7000 | L9: 6571.428571 | M9: 8000
A10: 삼계탕 | B10: " | D10: 9524.074074 | E10: 9666.666667 | F10: 9500 | G10: 9500 | H10: 9250 | I10: 9750 | J10: 9000 | K10: 9800 | L10: 10000 | M10: 10000
A11: 김치찌개백반 | B11: " | D11: 5139.91453 | E11: 5400 | F11: 4500 | G11: 5000 | H11: 5000 | I11: 4769.230769 | J11: 5400 | K11: 5450 | L11: 5780 | M11: 5000
A12: 된장찌개백반 | B12: " | D12: 5030.731922 | E12: 5107.142857 | F12: 5000 | G12: 5222.222222 | H12: 5166.666667 | I12: 4350 | J12: 5000 | K12: 5055.555556 | L12: 5425 | M12: 5000
A13: 불고기 | B13: 1인분 (200g) | D13: 7716.666667 | E13: 0 | F13: 0 | G13: 8000 | H13: 9666.666667 | I13: 0 | J13: 0 | K13: 7200 | L13: 6000 | M13: 0
A14: 등심 | B14: " | D14: 28733.33333 | E14: 25000 | F14: 33400 | G14: 0 | H14: 36000 | I14: 0 | J14: 27000 | K14: 25000 | L14: 26000 | M14: 0
A15: 돼지갈비 | B15: " | D15: 7015.661376 | E15: 7200 | F15: 8000 | G15: 7200 | H15: 7333.333333 | I15: 7050 | J15: 6176.666667 | K15: 7214.285714 | L15: 7066.666667 | M15: 6350
A16: 삼겹살 | B16: " | D16: 9548.758556 | E16: 9836.363636 | F16: 10230 | G16: 9805.714286 | H16: 9021.428571 | I16: 9694.117647 | J16: 9346.666667 | K16: 9551.153846 | L16: 9765 | M16: 9000
A17: 자장면 | B17: 1그릇 (중국집) | D17: 3633.333333 | E17: 3875 | F17: 4250 | G17: 3400 | H17: 3125 | I17: 2833.333333 | J17: 3000 | K17: 4000 | L17: 4300 | M17: 3583.333333
A18: 짬뽕 | B18: " | D18: 4397.222222 | E18: 4625 | F18: 5000 | G18: 4125 | H18: 4125 | I18: 3666.666667 | J18: 3875 | K18: 4625 | L18: 5500 | M18: 4166.666667
A19: 탕수육 | B19: " | D19: 13450.92593 | E19: 14750 | F19: 17000 | G19: 13750 | H19: 11750 | I19: 10333.33333 | J19: 10500 | K19: 14125 | L19: 16600 | M19: 12250
A20: 돈가스 | B20: 1인분 (경양식집) | D20: 5559.52381 | E20: 5000 | F20: 7500 | G20: 8500 | H20: 5333.333333 | I20: 2250 | J20: 0 | K20: 5333.333333 | L20: 5000 | M20: 0
A21: 생선초밥 | B21: 1인분 (일식집) | D21: 10187.5 | E21: 12000 | F21: 0 | G21: 0 | H21: 8750 | I21: 0 | J21: 0 | K21: 8000 | L21: 12000 | M21: 0
A22: 치킨 | B22: 1마리 (튀김통닭) | D22: 13156.87831 | E22: 16000 | F22: 11428.57143 | G22: 14666.66667 | H22: 12000 | I22: 12500 | J22: 13816.66667 | K22: 14000 | L22: 14000 | M22: 10000
A23: 햄버거 | B23: 1개(야채+고기 +전문햄버거) | D23: 2520 | E23: 0 | F23: 3300 | G23: 2250 | H23: 0 | I23: 0 | J23: 2350 | K23: 1500 | L23: 3200 | M23: 0
A24: 피자 | B24: 1판 (불고기 9인치) | D24: 11441.66667 | E24: 0 | F24: 11400 | G24: 10300 | H24: 14000 | I24: 10950 | J24: 0 | K24: 6000 | L24: 16000 | M24: 0
A25: 칼국수 | B25: 1그릇 (분식집) | D25: 4681.547619 | E25: 4500 | F25: 4583.333333 | G25: 4571.428571 | H25: 4833.333333 | I25: 4500 | J25: 4571.428571 | K25: 0 | L25: 5142.857143 | M25: 4750
A26: 라면 | B26: " | D26: 2624.074074 | E26: 3000 | F26: 2500 | G26: 2500 | H26: 3450 | I26: 1666.666667 | J26: 2500 | K26: 2500 | L26: 3000 | M26: 2500
A27: 김밥 | B27: " | D27: 1675.925926 | E27: 2000 | F27: 1500 | G27: 1750 | H27: 2000 | I27: 1000 | J27: 1500 | K27: 1833.333333 | L27: 2000 | M27: 1500
A28: 커피 | B28: 1잔 (일반 원두커피) | D28: 2427.083333 | E28: 1333.333333 | F28: 2966.666667 | G28: 2500 | H28: 1750 | I28: 2500 | J28: 1666.666667 | K28: 0 | L28: 3900 | M28: 2800
A29: 국산차 | B29: 1잔(녹차) | D29: 2280 | E29: 1833.333333 | F29: 0 | G29: 3500 | H29: 500 | I29: 0 | J29: 1666.666667 | K29: 0 | L29: 3900 | M29: 0
A30: 생맥주 | B30: 500CC | D30: 2827.380952 | E30: 3000 | F30: 3000 | G30: 2785.714286 | H30: 2500 | I30: 2750 | J30: 2833.333333 | K30: 0 | L30: 3000 | M30: 2750
A31: 세 탁 료 | B31: 1벌 (양복상하) | D31: 5700.617284 | E31: 7000 | F31: 5000 | G31: 5222.222222 | H31: 4333.333333 | I31: 6000 | J31: 6000 | K31: 6000 | L31: 6000 | M31: 5750
A32: 의복수선료 | B32: 신사복하의 (길이수선) | D32: 2314.814815 | E32: 2250 | F32: 2000 | G32: 2000 | H32: 2666.666667 | I32: 2000 | J32: 2166.666667 | K32: 2750 | L32: 3000 | M32: 2000
A33: 공동주택 관리비 | B33: 1개월고층 31평 개별부과요금제외 | D33: 81052.16667 | E33: 0 | F33: 94785 | G33: 106268 | H33: 0 | I33: 0 | J33: 43695 | K33: 61060 | L33: 86290 | M33: 88260
A34: 택배이용료 | B34: 기본20kg미만 | D34: 5200 | E34: 5000 | F34: 0 | G34: 0 | H34: 0 | I34: 5000 | J34: 5000 | K34: 5000 | L34: 6000 | M34: 0
A35: 수영장이용료 | B35: 성인 1회 (체육기금포함) | D35: 3000 | E35: 0 | F35: 0 | G35: 0 | H35: 3000 | I35: 0 | J35: 0 | K35: 0 | L35: 0 | M35: 0
A36: 볼링장이용료 | B36: 1게임1인 (일반평일) | D36: 3550 | E36: 0 | F36: 3800 | G36: 0 | H36: 0 | I36: 0 | J36: 0 | K36: 0 | L36: 0 | M36: 3300
A37: 골프연습장이용료 | B37: 1개월초급 (남자레슨기금5%) | D37: 125000 | E37: 0 | F37: 0 | G37: 130000 | H37: 0 | I37: 0 | J37: 0 | K37: 0 | L37: 120000 | M37: 0
A38: 당구장이용료 | B38: 1시간(쿠션 당구대일반) | D38: 6385.714286 | E38: 0 | F38: 0 | G38: 7500 | H38: 6000 | I38: 6200 | J38: 6000 | K38: 6000 | L38: 7200 | M38: 6000
A39: 노래방 이용료 | B39: 1시간 (일반실저녁) | D39: 17722.22222 | E39: 15000 | F39: 25000 | G39: 15833.33333 | H39: 16000 | I39: 16000 | J39: 16666.66667 | K39: 20000 | L39: 15000 | M39: 20000
A40: PC방이용료 | B40: 1시간 | D40: 729.1666667 | E40: 0 | F40: 0 | G40: 950 | H40: 500 | I40: 800 | J40: 675 | K40: 700 | L40: 0 | M40: 750
A41: 영화관람료 | B41: 1회 | D41: 6833.333333 | E41: 7000 | F41: 4500 | G41: 0 | H41: 0 | I41: 0 | J41: 0 | K41: 0 | L41: 9000 | M41: 0
A42: 사진촬영료 | B42: 증명판 | D42: 12250 | E42: 13000 | F42: 10000 | G42: 15000 | H42: 15000 | I42: 11000 | J42: 12000 | K42: 12000 | L42: 10000 | M42: 0
A43: 사진인화료 | B43: 3x5( 1매기준) 현상인화료포함 | D43: 260.7142857 | E43: 300 | F43: 300 | G43: 300 | H43: 300 | I43: 225 | J43: 0 | K43: 200 | L43: 200 | M43: 0
A44: 숙박료(호텔) | B44: 1박(관광호텔2급)
A45: 숙박료(여관) | B45: 1박 | D45: 28928.57143 | E45: 30000 | F45: 30000 | G45: 0 | H45: 0 | I45: 27500 | J45: 20000 | K45: 30000 | L45: 35000 | M45: 30000
A46: 콘도이용료 | B46: 25평1일1박
A47: 이용료 | B47: 1회 (성인중급) | D47: 8938.888889 | E47: 6500 | F47: 10000 | G47: 12000 | H47: 8500 | I47: 6500 | J47: 7250 | K47: 9200 | L47: 12000 | M47: 8500
A48: 미용료 | B48: 컷트 | D48: 6965.970032 | E48: 5750 | F48: 9000 | G48: 7058.823529 | H48: 6666.666667 | I48: 6153.846154 | J48: 7272.727273 | K48: 7125 | L48: 7000 | M48: 6666.666667
A49: 목 욕 료 | B49: 성인1회 | D49: 4825 | E49: 5000 | F49: 3600 | G49: 0 | H49: 5166.666667 | I49: 4750 | J49: 4750 | K49: 5000 | L49: 6000 | M49: 4333.333333
A50: 찜질방이용료 | B50: 성인1회 | D50: 6666.666667 | E50: 0 | F50: 0 | G50: 0 | H50: 7000 | I50: 0 | J50: 0 | K50: 0 | L50: 7000 | M50: 6000
A51: 운동경기관람료 | B51: 1회( 프로야구 축구일반내야) | F51: 0 | G51: 0 | H51: 0 | I51: 0 | J51: 0 | K51: 0 | L51: 0 | M51: 0

Sheet 중구 (hidden)
A1: 개 인 서 비 스 요 금 가 격 동 향
A3: 조사일시 : 2014. 8. | O3: (단위 : 원)
A4: 지역 품목 | B4: 조사기준 | C4: 우 리 구 평균가격 | D4: 은 행 선화동 | E4: 목동 | F4: 중촌동 | G4: 대흥동 | H4: 문창동 | I4: 석교동 | J4: 대사동 | K4: 부사동 | L4: 용두동 | M4: 오류동 | N4: 태평동 | O4: 유천동 | P4: 문화동 | Q4: 산성동
A6: 설렁탕 | B6: 1그릇 (대중식당) | C6: =AVERAGE(D6:Q6) -> 
A7: 냉 면 | B7: " | C7: =AVERAGE(D7:Q7) -> 
A8: 비빔밥 | B8: "
A9: 갈비탕 | B9: "
A10: 삼계탕 | B10: "
A11: 김치찌개백반 | B11: "
A12: 된장찌개백반 | B12: "
A13: 불고기 | B13: 1인분 (200g)
A14: 등심 | B14: "
A15: 돼지갈비 | B15: "
A16: 삼겹살 | B16: "
A17: 자장면 | B17: 1그릇 (중국집)
A18: 짬뽕 | B18: "
A19: 탕수육 | B19: "
A20: 돈가스 | B20: 1인분 (경양식집)
A21: 생선초밥 | B21: 1인분 (일식집)
A22: 치킨 | B22: 1마리 (튀김통닭)
A23: 햄버거 | B23: 1개(야채+고기 +전문햄버거)
A24: 피자 | B24: 1판 (불고기 9인치)
A25: 칼국수 | B25: 1그릇 (분식집)
A26: 라면 | B26: "
A27: 김밥 | B27: "
A28: 커피 | B28: 1잔 (일반 원두커피)
A29: 국산차 | B29: 1잔(녹차)
A30: 생맥주 | B30: 500cc
A31: 세 탁 료 | B31: 1벌 (양복상하)
A32: 의복수선료 | B32: 신사복하의 (길이수선)
A33: 공동주택 관리비 | B33: 1개월고층 31평 개별부과요금제외
A34: 택배이용료 | B34: 기본20kg미만
A35: 수영장이용료 | B35: 성인 1회 (체육기금포함)
A36: 볼링장이용료 | B36: 1게임1인 (일반평일)
A37: 골프연습장이용료 | B37: 1개월초급 (남자레슨기금5%)
A38: 당구장이용료 | B38: 1시간(쿠션 당구대일반)
A39: 노래방 이용료 | B39: 1시간 (일반실저녁)
A40: PC방이용료 | B40: 1시간
A41: 영화관람료 | B41: 1회(상영시간100분)
A42: 사진촬영료 | B42: 증명판
A43: 사진인화료 | B43: 3x5(1매기준) 현상인화료포함
A44: 숙박료(호텔) | B44: 1박(관광호텔 2급2종)
A45: 숙박료(여관) | B45: 1박(독방,욕탕부설)
A46: 콘도이용료 | B46: 25평1일1박
A47: 이용료 | B47: 1회 (성인중급)
A48: 미용료 | B48: 컷트
A49: 목 욕 료 | B49: 성인1회 (대중목용탕)
A50: 찜질방이용료 | B50: 성인1회
A51: 운동경기관람료 | B51: 1회( 프로야구 축구일반내야)
A52: ※ 조사일은 매월(5~10일)기준이며 45개 품목 지역별 평균 가격입니다.

Sheet 서구 (hidden)
A1: 개 인 서 비 스 요 금 가 격 동 향
A2: 조사일시 : 2014. 8.
A3: 구 분 | C3: 우 리 시 평균가격 | D3: 서 구
A4: 지역 품목 | B4: 조사기준 | D4: 평균가격 | E4: 복수동 | F4: 도마1동 | G4: 도마2동 | H4: 정림동 | I4: 변동 | J4: 용문동 | K4: 탄방동 | L4: 둔산1동 | M4: 둔산2동 | N4: 둔산3동 | O4: 괴정동 | P4: 가장동 | Q4: 내동 | R4: 갈마1동 | S4: 갈마2동 | T4: 월평1동 | U4: 월평2동 | V4: 월평3동 | W4: 만년동 | X4: 가수원동 | Y4: 관저2동
A6: 설렁탕 | B6: 1그릇 (대중식당) | D6: =AVERAGE(E6:Y6) -> 5905.384615 | G6: 6000 | H6: 5000 | J6: 5750 | K6: 5500 | L6: 6660 | M6: 7000 | N6: 6000 | S6: 4200 | T6: 6000 | U6: 6000 | W6: 7000 | X6: 5660 | Y6: 6000
A7: 냉 면 | B7: " | D7: =AVERAGE(E7:Y7) -> 5077.5 | E7: 4330 | F7: 4660 | G7: 6000 | H7: 5000 | I7: 4300 | J7: 4600 | K7: 5800 | L7: 6660 | M7: 8000 | N7: 4660 | O7: 4660 | P7: 4500 | Q7: 5660 | R7: 4400 | S7: 4000 | T7: 4660 | V7: 4000 | W7: 5500 | X7: 4500 | Y7: 5660
A8: 비빔밥 | B8: " | D8: 4608.5 | E8: 4500 | F8: 4660 | G8: 4250 | H8: 4500 | I8: 3750 | J8: 4800 | K8: 4500 | L8: 5660 | M8: 6620 | N8: 5330 | O8: 4160 | P8: 4000 | Q8: 4000 | R8: 4000 | S8: 3830 | T8: 4660 | V8: 4750 | W8: 4750 | X8: 4620 | Y8: 4830
A9: 갈비탕 | B9: " | D9: 6532 | E9: 6000 | F9: 6000 | G9: 6830 | H9: 7000 | I9: 5000 | J9: 6000 | K9: 7500 | L9: 7800 | M9: 8000 | N9: 7000 | O9: 5500 | P9: 6750 | Q9: 6660 | R9: 6750 | S9: 6000 | T9: 6000 | V9: 6000 | W9: 7250 | X9: 6600 | Y9: 6000
A10: 삼계탕 | B10: " | D10: 9812.631579 | E10: 10000 | F10: 9660 | G10: 10660 | H10: 8660 | I10: 8800 | J10: 9000 | K10: 10500 | L10: 10000 | M10: 10000 | N10: 9660 | O10: 9500 | P10: 10000 | Q10: 12000 | R10: 9000 | S10: 9500 | T10: 10500 | W10: 11000 | X10: 8000 | Y10: 10000
A11: 김치찌개백반 | B11: " | D11: 5234.285714 | E11: 5330 | F11: 4830 | G11: 5000 | H11: 5660 | I11: 5000 | J11: 5200 | K11: 5250 | L11: 5500 | M11: 5660 | N11: 5330 | O11: 5000 | P11: 5000 | Q11: 5500 | R11: 5600 | S11: 4250 | T11: 5660 | U11: 5750 | V11: 5000 | W11: 5370 | X11: 5200 | Y11: 4830
A12: 된장찌개백반 | B12: " | D12: 5151.904762 | E12: 4870 | F12: 4750 | G12: 5250 | H12: 5660 | I12: 4800 | J12: 5100 | K12: 5100 | L12: 5160 | M12: 5660 | N12: 5000 | O12: 5000 | P12: 5200 | Q12: 5400 | R12: 4800 | S12: 4660 | T12: 5330 | U12: 6000 | V12: 5000 | W12: 5370 | X12: 5250 | Y12: 4830
A13: 불고기 | B13: 1인분 (200g) | D13: 8748.181818 | G13: 10000 | H13: 6000 | I13: 6000 | K13: 9000 | L13: 10500 | M13: 10000 | R13: 8400 | S13: 7330 | T13: 13000 | W13: 8000 | Y13: 8000
A14: 등심 | B14: " | D14: 23330.625 | E14: 25000 | F14: 21500 | G14: 20000 | H14: 20000 | I14: 20330 | J14: 25000 | K14: 20660 | L14: 30500 | M14: 31200 | N14: 16000 | R14: 24000 | S14: 20500 | T14: 25500 | W14: 33000 | X14: 20000 | Y14: 20100
A15: 돼지갈비 | B15: " | D15: 8657.222222 | E15: 10000 | F15: 9000 | G15: 8000 | H15: 9000 | I15: 8000 | J15: 8600 | K15: 8000 | L15: 10000 | N15: 9000 | O15: 8660 | Q15: 9000 | R15: 8000 | S15: 4660 | T15: 9000 | U15: 10000 | W15: 10000 | X15: 7250 | Y15: 9660
A16: 삼겹살 | B16: " | D16: 9341.904762 | E16: 9330 | F16: 9330 | G16: 8660 | H16: 10660 | I16: 9000 | J16: 9200 | K16: 9920 | L16: 10250 | M16: 10500 | N16: 9000 | O16: 8660 | P16: 10000 | Q16: 9750 | R16: 10200 | S16: 8000 | T16: 10000 | U16: 10000 | V16: 10000 | W16: 8330 | X16: 8330 | Y16: 7060
A17: 자장면 | B17: 1그릇 (중국집) | D17: 3617.619048 | E17: 3830 | F17: 3000 | G17: 3500 | H17: 3660 | I17: 2500 | J17: 3400 | K17: 3900 | L17: 4500 | M17: 4330 | N17: 4000 | O17: 3660 | P17: 2000 | Q17: 3830 | R17: 3700 | S17: 3000 | T17: 3160 | U17: 4000 | V17: 4000 | W17: 4000 | X17: 4000 | Y17: 4000
A18: 짬뽕 | B18: " | D18: 4414.761905 | E18: 4660 | F18: 4000 | G18: 4250 | H18: 4500 | I18: 3660 | J18: 4500 | K18: 4870 | L18: 5000 | M18: 5000 | N18: 4330 | O18: 4500 | P18: 3000 | Q18: 4330 | R18: 4200 | S18: 4000 | T18: 4330 | U18: 5000 | V18: 4750 | W18: 4830 | X18: 4500 | Y18: 4500
A19: 탕수육 | B19: 일반보통 | D19: 12689.52381 | E19: 14000 | F19: 11330 | G19: 11000 | H19: 13000 | I19: 10000 | J19: 8800 | K19: 11600 | L19: 14000 | M19: 12500 | N19: 11660 | O19: 13330 | P19: 11000 | Q19: 12000 | R19: 12600 | S19: 11000 | T19: 15000 | U19: 15000 | V19: 15000 | W19: 16000 | X19: 13330 | Y19: 14330
A20: 돈가스 | B20: 1인분 (경양식집) | D20: 5820.47619 | E20: 5330 | F20: 5830 | G20: 4500 | H20: 7000 | I20: 5250 | J20: 5620 | K20: 5750 | L20: 6330 | M20: 8100 | N20: 6000 | O20: 5330 | P20: 6000 | Q20: 6000 | R20: 4370 | S20: 4660 | T20: 6000 | U20: 7000 | V20: 5000 | W20: 6500 | X20: 6000 | Y20: 5660
A21: 생선초밥 | B21: 1인분 (일식집) | D21: 11930 | E21: 8000 | F21: 10000 | H21: 12000 | K21: 15000 | L21: 13330 | M21: 18000 | N21: 10000 | R21: 8000 | T21: 13500 | U21: 12000 | W21: 13330 | Y21: 10000
A22: 치킨 | B22: 1마리 (튀김통닭) | D22: 14169.04762 | E22: 12720 | F22: 14660 | G22: 15330 | H22: 12470 | I22: 12660 | J22: 13780 | K22: 15500 | L22: 13330 | M22: 16000 | N22: 13660 | O22: 14500 | P22: 15000 | Q22: 12970 | R22: 14000 | S22: 11660 | T22: 14660 | U22: 13500 | V22: 15000 | W22: 16000 | X22: 17150 | Y22: 13000
A23: 햄버거 | B23: 1개(야채+고기 +전문햄버거) | D23: 2852.142857 | F23: 3300 | H23: 3500 | I23: 1500 | K23: 3300 | L23: 3700 | M23: 2500 | N23: 2700 | O23: 2900 | P23: 2500 | R23: 2700 | S23: 1830 | U23: 3300 | X23: 3200 | Y23: 3000
A24: 피자 | B24: 1판 (불고기 9인치) | D24: 12310.52632 | E24: 7670 | F24: 11500 | G24: 11000 | H24: 11820 | I24: 9950 | J24: 10900 | K24: 10220 | L24: 18760 | M24: 12950 | N24: 16900 | O24: 12200 | P24: 11330 | Q24: 12250 | R24: 18000 | S24: 8470 | T24: 21900 | U24: 13000 | X24: 6850 | Y24: 8230
A25: 칼국수 | B25: 1그릇 (분식집) | D25: 4551.904762 | E25: 3830 | F25: 4660 | G25: 4160 | H25: 4870 | I25: 4750 | J25: 4400 | K25: 4500 | L25: 5000 | M25: 5330 | N25: 5000 | O25: 5000 | P25: 4330 | Q25: 5000 | R25: 4620 | S25: 3330 | T25: 5120 | U25: 3500 | V25: 4500 | W25: 4870 | X25: 4660 | Y25: 4160
A26: 라면 | B26: " | D26: 2643.809524 | E26: 2660 | F26: 2660 | G26: 2500 | H26: 3000 | I26: 2370 | J26: 2900 | K26: 2750 | L26: 3000 | M26: 3000 | N26: 2500 | O26: 2500 | P26: 3000 | Q26: 2330 | R26: 2100 | S26: 2000 | T26: 3000 | U26: 2500 | V26: 2750 | W26: 2500 | X26: 2500 | Y26: 3000
A27: 김밥 | B27: " | D27: 1714.761905 | E27: 1500 | F27: 1500 | G27: 1500 | H27: 1500 | I27: 1500 | J27: 2000 | K27: 2000 | L27: 2060 | M27: 2000 | N27: 1500 | O27: 1500 | P27: 1800 | Q27: 1660 | R27: 1500 | S27: 1660 | T27: 1900 | U27: 1500 | V27: 3000 | W27: 1500 | X27: 1430 | Y27: 1500
A28: 커피 | B28: 1잔 (일반 원두커피) | D28: 2554.117647 | F28: 3000 | G28: 3300 | H28: 2000 | I28: 1750 | J28: 2000 | K28: 2980 | L28: 2760 | N28: 2800 | O28: 3330 | P28: 2000 | Q28: 2000 | S28: 2000 | T28: 2350 | U28: 2500 | W28: 3330 | X28: 2660 | Y28: 2660
A29: 국산차 | B29: 1잔(녹차) | D29: 2763.571429 | F29: 2160 | G29: 4000 | H29: 2660 | I29: 1750 | J29: 2000 | K29: 3120 | L29: 3000 | O29: 4000 | P29: 2000 | Q29: 2000 | S29: 2000 | U29: 4000 | W29: 4000 | X29: 2000
A30: 생맥주 | B30: 500CC | D30: 2893.809524 | E30: 2500 | F30: 3000 | G30: 2500 | H30: 3000 | I30: 2500 | J30: 2900 | K30: 2560 | L30: 2660 | M30: 3000 | N30: 3000 | O30: 2500 | P30: 3000 | Q30: 3000 | R30: 2900 | S30: 3500 | T30: 3000 | U30: 4250 | V30: 3000 | W30: 2500 | X30: 3000 | Y30: 2500
A31: 세 탁 료 | B31: 1벌 (양복상하) | D31: 5283.809524 | E31: 4500 | F31: 5660 | G31: 5660 | H31: 5750 | I31: 5600 | J31: 5800 | K31: 5600 | L31: 5000 | M31: 5660 | N31: 5000 | O31: 5000 | P31: 5500 | Q31: 5000 | R31: 5000 | S31: 4250 | T31: 4660 | U31: 5000 | V31: 5830 | W31: 5660 | X31: 6000 | Y31: 4830
A32: 의복수선료 | B32: 신사복하의 (길이수선) | D32: 2837.619048 | E32: 3000 | F32: 2000 | G32: 2000 | H32: 2000 | I32: 2600 | J32: 3000 | K32: 3000 | L32: 3160 | M32: 3330 | N32: 2000 | O32: 4000 | P32: 3000 | Q32: 2750 | R32: 3000 | S32: 2250 | T32: 3000 | U32: 3500 | V32: 3000 | W32: 3000 | X32: 3000 | Y32: 3000
A33: 공동주택 관리비 | B33: 1개월고층 31평 개별부과요금제외 | D33: 105615.3846 | E33: 101660 | F33: 107470 | H33: 140360 | K33: 81840 | L33: 101800 | M33: 106130 | N33: 106470 | P33: 70290 | Q33: 104000 | T33: 118520 | U33: 103090 | W33: 109490 | X33: 121880
A34: 택배이용료 | B34: 기본20kg미만 | D34: 5410 | F34: 6000 | M34: 6000 | O34: 4000 | P34: 5500 | R34: 5000 | X34: 5370 | Y34: 6000
A35: 수영장이용료 | B35: 성인 1회 (체육기금포함) | D35: 4860 | H35: 3000 | K35: 6000 | M35: 6000 | N35: 6000 | W35: 3300
A36: 볼링장이용료 | B36: 1게임1인 (일반평일) | D36: 2925 | F36: 2800 | H36: 3200 | M36: 3000 | O36: 2700
A37: 골프연습장이용료 | B37: 1개월초급 (남자레슨기금5%) | D37: 173653.0769 | E37: 290000 | K37: 153330 | L37: 136660 | M37: 132500 | N37: 150000 | Q37: 120000 | R37: 380000 | S37: 130000 | U37: 165000 | V37: 120000 | W37: 150000 | X37: 220000 | Y37: 110000
A38: 당구장이용료 | B38: 1시간(쿠션 당구대일반) | D38: 6885 | E38: 7060 | F38: 5200 | G38: 5400 | H38: 7000 | I38: 5200 | J38: 6600 | K38: 7260 | L38: 8150 | M38: 8750 | N38: 7000 | O38: 7000 | P38: 5000 | Q38: 7000 | R38: 6400 | S38: 7350 | T38: 8400 | U38: 7200 | W38: 7200 | X38: 6330 | Y38: 8200
A39: 노래방 이용료 | B39: 1시간 (일반실저녁) | D39: 18979 | E39: 20000 | F39: 20000 | G39: 15000 | H39: 20000 | I39: 20000 | J39: 20000 | K39: 21250 | L39: 13000 | M39: 25000 | N39: 12000 | O39: 15000 | P39: 20000 | Q39: 20000 | R39: 20000 | S39: 18330 | T39: 20000 | U39: 20000 | W39: 20000 | X39: 20000 | Y39: 20000
A40: PC방이용료 | B40: 1시간 | D40: 843.1578947 | E40: 800 | F40: 630 | G40: 500 | H40: 1200 | I40: 800 | J40: 750 | K40: 1000 | L40: 950 | M40: 700 | N40: 1000 | O40: 800 | Q40: 770 | R40: 860 | S40: 800 | T40: 960 | U40: 500 | W40: 1000 | X40: 1000 | Y40: 1000
A41: 영화관람료 | B41: 1회 | D41: 8000 | F41: 7000 | K41: 9000 | O41: 8000 | U41: 8000
A42: 사진촬영료 | B42: 증명판 | D42: 13893.68421 | E42: 10000 | F42: 13660 | G42: 14660 | H42: 15000 | I42: 10000 | K42: 10660 | L42: 17500 | M42: 16000 | N42: 14000 | P42: 15000 | Q42: 11500 | R42: 10000 | S42: 15000 | T42: 20000 | U42: 12000 | V42: 14000 | W42: 15000 | X42: 15000 | Y42: 15000
A43: 사진인화료 | B43: 디지탈사진인화료 1장 | D43: 426.4705882 | E43: 270 | F43: 360 | G43: 400 | H43: 300 | I43: 250 | K43: 300 | L43: 300 | N43: 300 | P43: 1500 | Q43: 1200 | R43: 300 | S43: 250 | T43: 400 | U43: 300 | V43: 250 | W43: 270 | Y43: 300
A44: 숙박료(호텔) | B44: 1박(관광호텔2급) | D44: 62000 | J44: 32000 | L44: 71500 | M44: 82500
A45: 숙박료(여관) | B45: 1박 | D45: 31854.54545 | F45: 21660 | G45: 25000 | I45: 21250 | J45: 20000 | K45: 42500 | L45: 36660 | M45: 45000 | O45: 33330 | P45: 25000 | T45: 40000 | U45: 40000
A46: 콘도이용료 | B46: 25평1일1박
A47: 이용료 | B47: 1회 (성인중급) | D47: 10211.42857 | E47: 10000 | F47: 8750 | G47: 9000 | H47: 10660 | I47: 9400 | J47: 8660 | K47: 12660 | L47: 9000 | M47: 10000 | N47: 9330 | O47: 10000 | P47: 9330 | Q47: 10000 | R47: 12000 | S47: 9000 | T47: 12000 | U47: 10330 | V47: 13000 | W47: 10660 | X47: 12000 | Y47: 8660
A48: 미용료 | B48: 컷트 | D48: 8573.157895 | E48: 7660 | F48: 7000 | H48: 9000 | I48: 5750 | J48: 7000 | K48: 9200 | L48: 10000 | M48: 13600 | N48: 8000 | O48: 6660 | P48: 9660 | Q48: 8250 | R48: 10200 | T48: 7750 | U48: 8750 | V48: 9330 | W48: 9000 | X48: 6750 | Y48: 9330
A49: 목 욕 료 | B49: 성인1회 | D49: 4970 | E49: 5000 | F49: 5000 | G49: 5000 | H49: 5330 | I49: 3750 | L49: 5000 | N49: 5500 | O49: 4250 | P49: 4750 | T49: 5000 | U49: 5000 | W49: 6000 | X49: 5000 | Y49: 5000
A50: 찜질방이용료 | B50: 성인1회 | D50: 6500 | F50: 6000 | H50: 5000 | J50: 5000 | K50: 7500 | T50: 8000 | W50: 8000 | Y50: 6000
A51: 운동경기관람료 | B51: 1회( 프로야구 축구일반내야)

Sheet 유성구 (hidden)
A1: 개 인 서 비 스 요 금 가 격 동 향
A2: 조사일시 : 2014. 8.
A3: 구 분 | C3: 유 성 구
A4: 지역 품목 | B4: 조사기준 | C4: 진잠동 | D4: 온천1동 | E4: 노은동 | F4: 신성동 | G4: 전민동 | H4: 구즉동 | I4: 온천2동 | J4: 윈신흥동
A6: 설렁탕 | B6: 1그릇 (대중식당) | C6: 7000 | D6: 6000 | E6: 6500 | G6: 6500 | H6: 7000 | I6: 5000 | J6: 5500
A7: 냉 면 | B7: " | C7: 6000 | D7: 5000 | E7: 6000 | F7: 7000 | G7: 6000 | H7: 6000 | I7: 5000 | J7: 5000
A8: 비빔밥 | B8: " | C8: 5500 | D8: 5000 | E8: 6000 | F8: 5000 | G8: 5500 | H8: 5000 | I8: 5000 | J8: 5000
A9: 갈비탕 | B9: " | C9: 6000 | D9: 7000 | E9: 8000 | G9: 7000 | H9: 7000 | I9: 6000 | J9: 5500
A10: 삼계탕 | B10: " | C10: 11000 | D10: 10000 | E10: 11000 | F10: 13000 | G10: 11000 | H10: 10000 | I10: 10000 | J10: 10000
A11: 김치찌개백반 | B11: " | C11: 5500 | D11: 6000 | E11: 5500 | F11: 6000 | G11: 6000 | H11: 5500 | I11: 5000 | J11: 5000
A12: 된장찌개백반 | B12: " | C12: 5500 | D12: 6000 | E12: 5500 | F12: 6000 | G12: 6000 | H12: 5500 | I12: 5000 | J12: 5000
A13: 불고기 | B13: 1인분 (200g) | C13: 9000 | D13: 10000 | E13: 8000 | G13: 9000 | H13: 9000 | I13: 9000
A14: 등심 | B14: " | C14: 25000 | D14: 20000 | E14: 25000 | F14: 22000 | G14: 28000 | H14: 23000 | I14: 22000 | J14: 20000
A15: 돼지갈비 | B15: " | C15: 9000 | D15: 10000 | E15: 12000 | F15: 10000 | G15: 10000 | H15: 9000 | I15: 10000 | J15: 9000
A16: 삼겹살 | B16: " | C16: 11000 | D16: 11000 | E16: 12000 | F16: 10000 | G16: 11000 | H16: 11000 | I16: 10000 | J16: 12000
A17: 자장면 | B17: 1그릇 (중국집) | C17: 4000 | D17: 4000 | E17: 4500 | F17: 5000 | G17: 4500 | H17: 4000 | I17: 3500 | J17: 4500
A18: 짬뽕 | B18: " | C18: 4500 | D18: 4500 | E18: 5000 | F18: 6000 | G18: 5000 | H18: 5000 | I18: 4000 | J18: 5000
A19: 탕수육 | B19: 일반보통 | C19: 15000 | D19: 15000 | E19: 18000 | F19: 17000 | G19: 16000 | H19: 16000 | I19: 12000 | J19: 15000
A20: 돈가스 | B20: 1인분 (경양식집) | C20: 7000 | D20: 6000 | E20: 6000 | F20: 6000 | G20: 5000 | H20: 8000 | I20: 5000 | J20: 6000
A21: 생선초밥 | B21: 1인분 (일식집) | C21: 8000 | D21: 15000 | E21: 15000 | F21: 10000 | G21: 8500 | H21: 8500 | I21: 11000
A22: 치킨 | B22: 1마리 (튀김통닭) | C22: 16000 | D22: 15000 | E22: 15000 | F22: 17000 | G22: 17000 | H22: 17000 | I22: 15000 | J22: 15000
A23: 햄버거 | B23: 1개(야채+고기 +전문햄버거) | C23: 3300 | D23: 3300 | E23: 3300 | F23: 3500 | G23: 4500 | H23: 3300 | I23: 3500 | J23: 3300
A24: 피자 | B24: 1판 (불고기 9인치) | C24: 16900 | D24: 9000 | E24: 7900 | F24: 7900 | G24: 7900 | H24: 17000 | I24: 11000 | J24: 7900
A25: 칼국수 | B25: 1그릇 (분식집) | C25: 5000 | D25: 5000 | E25: 4500 | F25: 5000 | G25: 6000 | H25: 5000 | I25: 5000 | J25: 5000
A26: 라면 | B26: " | C26: 3000 | D26: 3000 | E26: 3000 | F26: 3000 | G26: 2700 | H26: 3000 | I26: 2500 | J26: 3000
A27: 김밥 | B27: " | C27: 1500 | D27: 1500 | E27: 1500 | F27: 2000 | G27: 2000 | H27: 1500 | I27: 1500 | J27: 1500
A28: 커피 | B28: 1잔 (일반 원두커피) | C28: 2500 | D28: 3000 | E28: 3000 | F28: 3500 | G28: 3000 | H28: 2500 | I28: 2500 | J28: 2500
A29: 국산차 | B29: 1잔(녹차) | C29: 2500 | D29: 3000 | E29: 3500 | F29: 4500 | G29: 5000 | H29: 3500 | I29: 3000 | J29: 3500
A30: 생맥주 | B30: 500CC | C30: 3000 | D30: 3000 | E30: 3000 | F30: 2500 | G30: 2500 | H30: 3000 | I30: 2500 | J30: 3000
A31: 세 탁 료 | B31: 1벌 (양복상하) | C31: 5000 | D31: 6000 | E31: 5000 | F31: 6000 | G31: 6000 | H31: 5000 | I31: 5000 | J31: 5000
A32: 의복수선료 | B32: 신사복하의 (길이수선) | C32: 2500 | D32: 2000 | E32: 4000 | F32: 3000 | G32: 3000 | H32: 3000 | I32: 2000 | J32: 3000
A33: 공동주택 관리비 | B33: 1개월고층 31평 개별부과요금제외 | C33: 113000 | D33: 120000 | E33: 142700 | F33: 101900 | G33: 103266 | H33: 125000 | I33: 110000 | J33: 145000
A34: 택배이용료 | B34: 기본20kg미만 | C34: 6000 | D34: 5000 | E34: 5000 | F34: 5000 | G34: 5000 | H34: 6000 | I34: 5000 | J34: 5000
A35: 수영장이용료 | B35: 성인 1회 (체육기금포함) | C35: 2200 | E35: 3000 | G35: 3500
A36: 볼링장이용료 | B36: 1게임1인 (일반평일) | D36: 4000 | E36: 3300 | I36: 3500
A37: 골프연습장이용료 | B37: 1개월초급 (남자레슨기금5%) | C37: 165000 | D37: 200000 | E37: 120000 | F37: 100000 | G37: 100000 | I37: 180000
A38: 당구장이용료 | B38: 1시간(쿠션 당구대일반) | C38: 12000 | D38: 9000 | E38: 9000 | F38: 9000 | G38: 9000 | H38: 12000 | I38: 6000
A39: 노래방 이용료 | B39: 1시간 (일반실저녁) | C39: 20000 | D39: 25000 | E39: 20000 | F39: 25000 | G39: 22000 | H39: 20000 | I39: 9000 | J39: 20000
A40: PC방이용료 | B40: 1시간 | C40: 1200 | D40: 11000 | E40: 1300 | F40: 1000 | G40: 1000 | H40: 1300 | I40: 1000 | J40: 1300
A41: 영화관람료 | B41: 1회 | E41: 9000
A42: 사진촬영료 | B42: 증명판 | C42: 120000 | D42: 13000 | E42: 10000 | F42: 12000 | G42: 12000 | H42: 12000 | I42: 12000 | J42: 12000
A43: 사진인화료 | B43: 디지탈사진인화료1장 | C43: 250 | D43: 7200 | E43: 250 | F43: 900 | G43: 900 | H43: 300 | I43: 7680 | J43: 250
A44: 숙박료(호텔) | B44: 1박(관광호텔2급) | D44: 120000
A45: 숙박료(여관) | B45: 1박 | C45: 30000 | D45: 50000 | H45: 30000 | I45: 40000
A46: 콘도이용료 | B46: 25평1일1박
A47: 이용료 | B47: 1회 (성인중급) | C47: 10000 | D47: 10000 | E47: 10000 | F47: 6000 | G47: 12000 | H47: 10000 | I47: 6000
A48: 미용료 | B48: 컷트 | C48: 8000 | D48: 7000 | E48: 7000 | F48: 10000 | G48: 8000 | H48: 8000 | I48: 5000 | J48: 10000
A49: 목 욕 료 | B49: 성인1회 | C49: 5000 | D49: 6000 | E49: 6000 | F49: 5000 | G49: 4500 | H49: 5000
A50: 찜질방이용료 | B50: 성인1회 | D50: 9000 | E50: 8000
A51: 운동경기관람료 | B51: 1회( 프로야구 축구일반내야) | E51: 8000

Sheet 대덕구 (hidden)
A1: 개인서비스요금 가격동향
A2: 2014. 8. 10일자 기준 / (단위 : 원)
A3: 구 분 | C3: 우리구 평균가 (본월) | D3: 대덕구
A4: 지역 품목 | B4: 조사기준 | D4: 오정동 | E4: 대화동 | F4: 회덕동 | G4: 비래동 | H4: 송촌동 | I4: 중리동 | J4: 법1, 2동 | K4: 신탄진동 | L4: 석봉, 목상동 | M4: 덕암동
A5: 설렁탕 | B5: 1그릇(대중식당) | C5: =(D5+E5+F5+G5+H5+I5+J5+K5+L5+M5)/5 -> 6600 | D5: 6000 | F5: 0 | G5: 0 | H5: 0 | I5: 6000 | J5: 6000 | K5: 0 | L5: 7000 | M5: 8000
A6: 냉 면 | B6: " | C6: =(D6+E6+F6+G6+H6+I6+J6+K6+L6+M6)/10 -> 6050 | D6: 7000 | E6: 5000 | F6: 6000 | G6: 5000 | H6: 8000 | I6: 6000 | J6: 5500 | K6: 6000 | L6: 6000 | M6: 6000
A7: 비빔밥 | B7: " | C7: =(D7+E7+F7+G7+H7+I7+J7+K7+L7+M7)/9 -> 5000 | D7: 4000 | E7: 4500 | F7: 0 | G7: 4500 | H7: 5000 | I7: 4000 | J7: 6000 | K7: 6000 | L7: 6000 | M7: 5000
A8: 갈비탕 | B8: " | C8: =(D8+E8+F8+G8+H8+I8+J8+K8+L8+M8)/10 -> 7000 | D8: 5000 | E8: 5000 | F8: 8000 | G8: 7000 | H8: 9000 | I8: 6000 | J8: 7000 | K8: 8000 | L8: 7000 | M8: 8000
A9: 삼계탕 | B9: " | C9: =(D9+E9+F9+G9+H9+I9+J9+K9+L9+M9)/10 -> 10100 | D9: 10000 | E9: 10000 | F9: 10000 | G9: 10000 | H9: 10000 | I9: 10000 | J9: 10000 | K9: 10000 | L9: 11000 | M9: 10000
A10: 김치찌개백반 | B10: " | C10: =(D10+E10+F10+G10+H10+I10+J10+K10+L10+M10)/10 -> 5600 | D10: 5000 | E10: 6000 | F10: 5000 | G10: 5000 | H10: 6000 | I10: 6000 | J10: 6000 | K10: 6000 | L10: 6000 | M10: 5000
A11: 된장찌개백반 | B11: " | C11: =(D11+E11+F11+G11+H11+I11+J11+K11+L11+M11)/10 -> 5600 | D11: 5000 | E11: 6000 | F11: 5000 | G11: 5000 | H11: 6000 | I11: 6000 | J11: 6000 | K11: 6000 | L11: 6000 | M11: 5000
A12: 불고기 | B12: 1인분(200g) | C12: =(D12+E12+F12+G12+H12+I12+J12+K12+L12+M12)/5 -> 9200 | D12: 9000 | E12: 0 | F12: 0 | G12: 9000 | H12: 7000 | I12: 12000 | J12: 0 | K12: 0 | L12: 9000 | M12: 0
A13: 등심 | B13: " | C13: =(D13+E13+F13+G13+H13+I13+J13+K13+L13+M13)/9 -> 23222.22222 | D13: 25000 | E13: 0 | F13: 25000 | G13: 26000 | H13: 14000 | I13: 29000 | J13: 23000 | K13: 25000 | L13: 18000 | M13: 24000
A14: 돼지갈비 | B14: " | C14: =(D14+E14+F14+G14+H14+I14+J14+K14+L14+M14)/10 -> 9600 | D14: 10000 | E14: 10000 | F14: 11000 | G14: 10000 | H14: 10000 | I14: 10000 | J14: 8000 | K14: 10000 | L14: 7000 | M14: 10000
A15: 삼겹살 | B15: " | C15: =(D15+E15+F15+G15+H15+I15+J15+K15+L15+M15)/10 -> 9800 | D15: 10000 | E15: 9000 | F15: 11000 | G15: 10000 | H15: 10000 | I15: 9000 | J15: 9000 | K15: 10000 | L15: 10000 | M15: 10000
A16: 자장면 | B16: 1그릇(중국집) | C16: =(D16+E16+F16+G16+H16+I16+J16+K16+L16+M16)/10 -> 4200 | D16: 4000 | E16: 4000 | F16: 4500 | G16: 4500 | H16: 4000 | I16: 4500 | J16: 4000 | K16: 3500 | L16: 4000 | M16: 5000
A17: 짬뽕 | B17: " | C17: =(D17+E17+F17+G17+H17+I17+J17+K17+L17+M17)/10 -> 4700 | D17: 5000 | E17: 5000 | F17: 5000 | G17: 5000 | H17: 4500 | I17: 5000 | J17: 4500 | K17: 4000 | L17: 4000 | M17: 5000
A18: 탕수육 | B18: 일반 보통 | C18: =(D18+E18+F18+G18+H18+I18+J18+K18+L18+M18)/10 -> 15100 | D18: 15000 | E18: 16000 | F18: 15000 | G18: 16000 | H18: 12000 | I18: 18000 | J18: 16000 | K18: 18000 | L18: 10000 | M18: 15000
A19: 돈가스 | B19: 1인분(경양식집) | C19: =(D19+E19+F19+G19+H19+I19+J19+K19+L19+M19)/8 -> 5975 | D19: 3800 | E19: 5500 | F19: 6000 | G19: 5000 | H19: 9000 | I19: 5500 | J19: 7000 | K19: 0 | L19: 6000 | M19: 0
A20: 생선초밥 | B20: 1인분(일식집) | C20: =(D20+E20+F20+G20+H20+I20+J20+K20+L20+M20)/4 -> 10000 | D20: 0 | E20: 0 | F20: 0 | G20: 10000 | H20: 12000 | I20: 8000 | J20: 10000 | K20: 0 | L20: 0 | M20: 0
A21: 치킨 | B21: 1마리(튀김통닭) | C21: =(D21+E21+F21+G21+H21+I21+J21+K21+L21+M21)/10 -> 14500 | D21: 14000 | E21: 13000 | F21: 16000 | G21: 15000 | H21: 15000 | I21: 10000 | J21: 16000 | K21: 16000 | L21: 14000 | M21: 16000
A22: 햄버거 | B22: 1개(야채+고기 +전문햄버거) | C22: =(D22+E22+F22+G22+H22+I22+J22+K22+L22+M22)/7 -> 3028.571429 | D22: 0 | E22: 2000 | F22: 3200 | G22: 2300 | H22: 3300 | I22: 3500 | J22: 5000 | K22: 1900 | L22: 0 | M22: 0
A23: 피자 | B23: 1판 (불고기 9인치) | C23: =(D23+E23+F23+G23+H23+I23+J23+K23+L23+M23)/9 -> 10755.55556 | D23: 11100 | E23: 0 | F23: 7900 | G23: 8900 | H23: 7900 | I23: 9000 | J23: 16000 | K23: 6000 | L23: 12000 | M23: 18000
A24: 칼국수 | B24: 1그릇 (분식집) | C24: =(D24+E24+F24+G24+H24+I24+J24+K24+L24+M24)/10 -> 4550 | D24: 5000 | E24: 4000 | F24: 5000 | G24: 4000 | H24: 5000 | I24: 4000 | J24: 4000 | K24: 5000 | L24: 4500 | M24: 5000
A25: 라면 | B25: " | C25: =(D25+E25+F25+G25+H25+I25+J25+K25+L25+M25)/10 -> 2650 | D25: 2500 | E25: 2500 | F25: 2500 | G25: 2500 | H25: 3000 | I25: 2500 | J25: 2500 | K25: 3500 | L25: 2000 | M25: 3000
A26: 김밥 | B26: " | C26: =(D26+E26+F26+G26+H26+I26+J26+K26+L26+M26)/10 -> 1600 | D26: 1500 | E26: 1500 | F26: 1500 | G26: 1500 | H26: 1500 | I26: 1500 | J26: 3000 | K26: 1500 | L26: 1000 | M26: 1500
A27: 커피 | B27: 1잔 (일반 원두커피) | C27: =(D27+E27+F27+G27+H27+I27+J27+K27+L27+M27)/7 -> 2685.714286 | D27: 3000 | E27: 0 | F27: 3000 | G27: 2500 | H27: 2500 | I27: 2000 | J27: 0 | K27: 3800 | L27: 2000 | M27: 0
A28: 국산차 | B28: 녹차 | C28: =(D28+E28+F28+G28+H28+I28+J28+K28+L28+M28)/6 -> 2833.333333 | D28: 3000 | E28: 0 | F28: 3000 | G28: 3000 | H28: 0 | I28: 2000 | J28: 0 | K28: 3000 | L28: 3000 | M28: 0
A29: 생맥주 | B29: 500CC | C29: =(D29+E29+F29+G29+H29+I29+J29+K29+L29+M29)/10 -> 3000 | D29: 2500 | E29: 3000 | F29: 3000 | G29: 3000 | H29: 3000 | I29: 2500 | J29: 4000 | K29: 3000 | L29: 3000 | M29: 3000
A30: 세 탁 료 | B30: 1벌(양복상하) | C30: =(D30+E30+F30+G30+H30+I30+J30+K30+L30+M30)/10 -> 6300 | D30: 6000 | E30: 6000 | F30: 6000 | G30: 7000 | H30: 5000 | I30: 6000 | J30: 7000 | K30: 6000 | L30: 7000 | M30: 7000
A31: 의복수선료 | B31: 신사복하의(길이수선) | C31: =(D31+E31+F31+G31+H31+I31+J31+K31+L31+M31)/10 -> 2700 | D31: 3000 | E31: 3000 | F31: 2000 | G31: 2000 | H31: 3000 | I31: 2000 | J31: 3000 | K31: 2000 | L31: 3000 | M31: 4000
A32: 공동주택 관리비 | B32: 1개월고층 31평 개별부과요금제외 | C32: =(D32+E32+F32+G32+H32+I32+J32+K32+L32+M32)/7 -> 121958 | D32: 97405 | E32: 0 | F32: 125498 | G32: 80000 | H32: 98000 | I32: 128080 | J32: 129000 | K32: 107793 | L32: 0 | M32: 87930
A33: 택배이용료 | B33: 기본20kg미만 | C33: =(D33+E33+F33+G33+H33+I33+J33+K33+L33+M33)/9 -> 5888.888889 | D33: 5000 | E33: 5000 | F33: 6000 | G33: 5000 | H33: 7000 | I33: 5000 | J33: 0 | K33: 10000 | L33: 5000 | M33: 5000
A34: 수영장이용료 | B34: 성인 1회 (체육기금포함) | C34: =(D34+E34+F34+G34+H34+I34+J34+K34+L34+M34)/2 -> 2750 | D34: 0 | E34: 2500 | F34: 0 | G34: 0 | H34: 0 | I34: 3000 | J34: 0 | K34: 0 | L34: 0 | M34: 0
A35: 볼링장이용료 | B35: 1게임1인 (일반평일) | C35: =(D35+E35+F35+G35+H35+I35+J35+K35+L35+M35)/5 -> 3200 | D35: 2800 | E35: 0 | F35: 3300 | G35: 3300 | H35: 0 | I35: 0 | J35: 0 | K35: 0 | L35: 3300 | M35: 3300
A36: 골프연습장 이용료 | B36: 1개월초급 (남자레슨기금5%) | C36: =(D36+E36+F36+G36+H36+I36+J36+K36+L36+M36)/5 -> 122000 | D36: 120000 | E36: 0 | F36: 200000 | G36: 0 | H36: 90000 | I36: 0 | J36: 100000 | K36: 100000 | L36: 0 | M36: 0
A37: 당구장이용료 | B37: 1시간(쿠션당구대일반) | C37: =(D37+E37+F37+G37+H37+I37+J37+K37+L37+M37)/10 -> 7480 | D37: 8000 | E37: 7000 | F37: 7200 | G37: 7800 | H37: 9000 | I37: 6000 | J37: 7000 | K37: 7800 | L37: 7200 | M37: 7800
A38: 노래방 이용료 | B38: 1시간(일반실저녁) | C38: =(D38+E38+F38+G38+H38+I38+J38+K38+L38+M38)/10 -> 20000 | D38: 20000 | E38: 20000 | F38: 20000 | G38: 20000 | H38: 20000 | I38: 20000 | J38: 20000 | K38: 20000 | L38: 20000 | M38: 20000
A39: PC방이용료 | B39: 1시간 | C39: =(D39+E39+F39+G39+H39+I39+J39+K39+L39+M39)/9 -> 944.4444444 | D39: 800 | E39: 1000 | F39: 1000 | G39: 800 | H39: 900 | I39: 1000 | J39: 0 | K39: 1000 | L39: 1000 | M39: 1000
A40: 영화관람료 | B40: 1회(상영시간100분) | C40: =(D40+E40+F40+G40+H40+I40+J40+K40+L40+M40)/10 -> 0 | D40: 0 | E40: 0 | F40: 0 | G40: 0 | H40: 0 | I40: 0 | J40: 0 | K40: 0 | L40: 0 | M40: 0
A41: 사진촬영료 | B41: 증명판 | C41: =(D41+E41+F41+G41+H41+I41+J41+K41+L41+M41)/9 -> 14333.33333 | D41: 13000 | E41: 0 | F41: 13000 | G41: 13000 | H41: 15000 | I41: 12000 | J41: 15000 | K41: 20000 | L41: 10000 | M41: 18000
A42: 사진인화료 | B42: 디지탈사진인화료 1장 | C42: =(D42+E42+F42+G42+H42+I42+J42+K42+L42+M42)/8 -> 227.5 | D42: 300 | E42: 0 | F42: 0 | G42: 250 | H42: 300 | I42: 300 | J42: 300 | K42: 0 | L42: 0 | M42: 370
A43: 숙박료(호텔) | B43: 1박(관광호텔 2급2종) | C43: =(D43+E43+F43+G43+H43+I43+J43+K43+L43+M43)/10 -> 0 | D43: 0 | E43: 0 | F43: 0 | G43: 0 | H43: 0 | I43: 0 | J43: 0 | K43: 0 | L43: 0 | M43: 0
A44: 숙박료(여관) | B44: 1박 | C44: =(D44+E44+F44+G44+H44+I44+J44+K44+L44+M44)/7 -> 31428.57143 | D44: 30000 | E44: 0 | F44: 35000 | G44: 30000 | H44: 0 | I44: 30000 | J44: 0 | K44: 40000 | L44: 25000 | M44: 30000
A45: 콘도이용료 | B45: 25평, 1일1박 | C45: =(D45+E45+F45+G45+H45+I45+J45+K45+L45+M45)/10 -> 0 | D45: 0 | E45: 0 | F45: 0 | G45: 0 | H45: 0 | I45: 0 | J45: 0 | K45: 0 | L45: 0 | M45: 0
A46: 이용료 | B46: 1회(성인중급) | C46: =(D46+E46+F46+G46+H46+I46+J46+K46+L46+M46)/10 -> 10100 | D46: 10000 | E46: 10000 | F46: 10000 | G46: 9000 | H46: 9000 | I46: 13000 | J46: 10000 | K46: 10000 | L46: 10000 | M46: 10000
A47: 미용료 | B47: 컷트(여) | C47: =(D47+E47+F47+G47+H47+I47+J47+K47+L47+M47)/10 -> 8500 | D47: 8000 | E47: 7000 | F47: 9000 | G47: 8000 | H47: 10000 | I47: 9000 | J47: 9000 | K47: 8000 | L47: 10000 | M47: 7000
A48: 목 욕 료 | B48: 성인1회 | C48: =(D48+E48+F48+G48+H48+I48+J48+K48+L48+M48)/10 -> 4900 | D48: 5000 | E48: 5000 | F48: 4500 | G48: 5000 | H48: 7000 | I48: 5000 | J48: 4000 | K48: 4500 | L48: 4500 | M48: 4500
A49: 찜질방이용료 | B49: 성인1회 | C49: =(D49+E49+F49+G49+H49+I49+J49+K49+L49+M49)/2 -> 7500 | D49: 0 | E49: 0 | F49: 0 | G49: 0 | H49: 8000 | I49: 0 | J49: 0 | K49: 7000 | L49: 0 | M49: 0
A50: 운동경기관람료 | B50: 1회(프로야구 축구일반내야) | C50: =(D50+E50+F50+G50+H50+I50+J50+K50+L50+M50)/10 -> 0 | D50: 0 | E50: 0 | F50: 0 | G50: 0 | H50: 0 | I50: 0 | J50: 0 | K50: 0 | L50: 0 | M50: 0
